[Event "*** Titled Tuesday Blitz"]
[Site "Chess.com"]
[Date "2019.04.02"]
[Round "3"]
[White "jcgs1030"]
[Black "cstevens1"]
[Result "1-0"]
[WhiteElo "2330"]
[BlackElo "2709"]
[TimeControl "180+2"]
[EndTime "14:37:17 PDT"]
[Termination "jcgs1030 won by resignation"]

1. e4 {[%clk 0:02:57.9]} 1... c5 {[%clk 0:03:00.8]} 2. Nf3 {[%clk 0:02:57.2]}
2... e6 {[%clk 0:03:01.9]} 3. d4 {[%clk 0:02:57.3]} 3... cxd4 {[%clk 0:03:03]}
4. Nxd4 {[%clk 0:02:58]} 4... a6 {[%clk 0:03:04.3]} 5. g3 {[%clk 0:02:56.9]}
5... Qc7 {[%clk 0:03:05.1]} 6. Bg2 {[%clk 0:02:57.5]} 6... Nc6 {[%clk
0:03:06.2]} 7. O-O {[%clk 0:02:57.6]} 7... Nf6 {[%clk 0:03:07.7]} 8. Nc3 {[%clk
0:02:57.5]} 8... Nxd4 {[%clk 0:03:08.5]} 9. Qxd4 {[%clk 0:02:58]} 9... Bc5
{[%clk 0:03:10.1]} 10. Qd1 {[%clk 0:02:59.4]} 10... h5 {[%clk 0:03:04.2]} 11.
Bf4 {[%clk 0:02:59]} 11... d6 {[%clk 0:03:04.3]} 12. Na4 {[%clk 0:02:58]} 12...
e5 {[%clk 0:03:05.4]} 13. Bg5 {[%clk 0:02:54.6]} 13... Ba7 {[%clk 0:03:02.4]}
14. Bxf6 {[%clk 0:02:50.7]} 14... gxf6 {[%clk 0:03:04.3]} 15. Nc3 {[%clk
0:02:51.1]} 15... Be6 {[%clk 0:03:05]} 16. Nd5 {[%clk 0:02:47.4]} 16... Bxd5
{[%clk 0:02:46.6]} 17. Qxd5 {[%clk 0:02:46.8]} 17... h4 {[%clk 0:02:47.8]} 18.
Rfd1 {[%clk 0:02:42.8]} 18... Ke7 {[%clk 0:02:48.8]} 19. c3 {[%clk 0:02:43.1]}
19... Rag8 {[%clk 0:02:48]} 20. Rd3 {[%clk 0:02:43.3]} 20... hxg3 {[%clk
0:02:48]} 21. hxg3 {[%clk 0:02:44.1]} 21... Qc6 {[%clk 0:02:37.6]} 22. Qb3
{[%clk 0:02:40.6]} 22... Qb6 {[%clk 0:02:23.2]} 23. Qxb6 {[%clk 0:02:36.7]}
23... Bxb6 {[%clk 0:02:24.1]} 24. Rad1 {[%clk 0:02:38.6]} 24... Rd8 {[%clk
0:02:09.1]} 25. Bf3 {[%clk 0:02:34.5]} 25... Ba7 {[%clk 0:02:05.2]} 26. R1d2
{[%clk 0:02:27.8]} 26... Rhg8 {[%clk 0:02:05.4]} 27. Kg2 {[%clk 0:02:28.2]}
27... Rh8 {[%clk 0:02:05.8]} 28. Bd1 {[%clk 0:02:28.9]} 28... Rhg8 {[%clk
0:02:06.6]} 29. Bb3 {[%clk 0:02:29.3]} 29... Rg5 {[%clk 0:02:03.6]} 30. Rf3
{[%clk 0:02:26]} 30... Rh8 {[%clk 0:01:58.3]} 31. Rfd3 {[%clk 0:02:24]} 31...
Rd8 {[%clk 0:01:35.9]} 32. Bd5 {[%clk 0:02:23.6]} 32... Rd7 {[%clk 0:01:23.6]}
33. a4 {[%clk 0:02:16.4]} 33... f5 {[%clk 0:01:21.4]} 34. Rf3 {[%clk 0:02:03.7]}
34... f4 {[%clk 0:01:04.4]} 35. Kf1 {[%clk 0:01:45.4]} 35... Rg4 {[%clk
0:01:02.9]} 36. Rd1 {[%clk 0:01:33.7]} 36... Rd8 {[%clk 0:00:47]} 37. Ke2 {[%clk
0:01:31.8]} 37... Rb8 {[%clk 0:00:42.3]} 38. Rh1 {[%clk 0:01:27]} 38... b5
{[%clk 0:00:40.5]} 39. Rh7 {[%clk 0:01:27]} 39... Rf8 {[%clk 0:00:40.4]} 40. a5
{[%clk 0:01:26.1]} 40... b4 {[%clk 0:00:38.3]} 41. cxb4 {[%clk 0:01:24.8]} 41...
Bd4 {[%clk 0:00:39]} 42. b5 {[%clk 0:01:07.7]} 42... axb5 {[%clk 0:00:39.8]} 43.
Rb3 {[%clk 0:01:08.3]} 43... fxg3 {[%clk 0:00:36.2]} 44. fxg3 {[%clk 0:01:09.5]}
44... Kf6 {[%clk 0:00:33.7]} 45. Rf3+ {[%clk 0:01:05.8]} 45... Kg6 {[%clk
0:00:33.4]} 46. Rhxf7 {[%clk 0:01:03.9]} 46... Rxf7 {[%clk 0:00:30.9]} 47. Bxf7+
{[%clk 0:01:05.2]} 47... Kg7 {[%clk 0:00:32.3]} 48. Bd5 {[%clk 0:01:00.5]} 48...
b4 {[%clk 0:00:27.6]} 49. a6 {[%clk 0:00:59.9]} 49... Kh6 {[%clk 0:00:23.4]} 50.
Rf6+ {[%clk 0:00:53.2]} 50... Rg6 {[%clk 0:00:16.3]} 51. Rxg6+ {[%clk
0:00:35.8]} 51... Kxg6 {[%clk 0:00:18.2]} 52. Kd3 {[%clk 0:00:37.6]} 52... Kg5
{[%clk 0:00:19.3]} 53. Be6 {[%clk 0:00:36.8]} 53... b3 {[%clk 0:00:15.3]} 54.
Kc4 {[%clk 0:00:34.4]} 1-0

[Event "*** Titled Tuesday Blitz"]
[Site "Chess.com"]
[Date "2019.04.02"]
[Round "3"]
[White "dopolian"]
[Black "novocane"]
[Result "0-1"]
[WhiteElo "2186"]
[BlackElo "2202"]
[TimeControl "180+2"]
[EndTime "14:37:30 PDT"]
[Termination "novocane won by resignation"]

1. e4 {[%clk 0:03:01.9]} 1... c5 {[%clk 0:03:00.6]} 2. Nf3 {[%clk 0:03:02.2]}
2... Nc6 {[%clk 0:03:02.1]} 3. d4 {[%clk 0:03:01.8]} 3... cxd4 {[%clk 0:03:04]}
4. Nxd4 {[%clk 0:03:03.7]} 4... e5 {[%clk 0:03:05.6]} 5. Nb5 {[%clk 0:03:04.5]}
5... d6 {[%clk 0:03:07.5]} 6. N1c3 {[%clk 0:03:03.4]} 6... a6 {[%clk 0:03:08.7]}
7. Na3 {[%clk 0:03:04.7]} 7... Be7 {[%clk 0:03:10.5]} 8. Nd5 {[%clk 0:03:03.6]}
8... Nf6 {[%clk 0:03:11.6]} 9. Nxf6+ {[%clk 0:02:56.9]} 9... Bxf6 {[%clk
0:03:12.5]} 10. c4 {[%clk 0:02:56]} 10... O-O {[%clk 0:03:03.9]} 11. g3 {[%clk
0:02:47.4]} 11... Be6 {[%clk 0:02:52.7]} 12. Bg2 {[%clk 0:02:44.1]} 12... Rc8
{[%clk 0:02:32.9]} 13. O-O {[%clk 0:02:44.1]} 13... Nd4 {[%clk 0:02:34.1]} 14.
b3 {[%clk 0:02:40.6]} 14... b5 {[%clk 0:02:25.1]} 15. cxb5 {[%clk 0:02:39.5]}
15... axb5 {[%clk 0:02:25.9]} 16. Bd2 {[%clk 0:02:16.9]} 16... d5 {[%clk
0:02:19.6]} 17. Bb4 {[%clk 0:01:55.7]} 17... Re8 {[%clk 0:02:16.8]} 18. Qd2
{[%clk 0:01:51.2]} 18... Bh3 {[%clk 0:02:06.4]} 19. Qd3 {[%clk 0:01:30.2]} 19...
Bxg2 {[%clk 0:01:50.8]} 20. Kxg2 {[%clk 0:01:32.1]} 20... h5 {[%clk 0:01:41]}
21. Rad1 {[%clk 0:01:18.9]} 21... h4 {[%clk 0:01:41.2]} 22. Nxb5 {[%clk
0:01:15.6]} 22... h3+ {[%clk 0:01:31.4]} 23. Kg1 {[%clk 0:00:58.7]} 23... Nxb5
{[%clk 0:00:47]} 24. Qxb5 {[%clk 0:00:56.9]} 24... Rb8 {[%clk 0:00:47.9]} 25.
Qa5 {[%clk 0:00:44.5]} 25... Qxa5 {[%clk 0:00:36.3]} 26. Bxa5 {[%clk 0:00:44.6]}
26... dxe4 {[%clk 0:00:29.9]} 27. Rfe1 {[%clk 0:00:42]} 27... Bd8 {[%clk
0:00:17.2]} 28. Bc3 {[%clk 0:00:28.9]} 28... f5 {[%clk 0:00:17.4]} 29. Rd5
{[%clk 0:00:23.9]} 29... Bf6 {[%clk 0:00:18.4]} 30. a4 {[%clk 0:00:19.5]} 30...
Rxb3 {[%clk 0:00:18.8]} 31. Bd2 {[%clk 0:00:18.9]} 31... Ra3 {[%clk 0:00:17.6]}
32. a5 {[%clk 0:00:19.3]} 32... Ra8 {[%clk 0:00:17]} 33. Rd1 {[%clk 0:00:13]}
33... Rd3 {[%clk 0:00:16]} 34. Rxd3 {[%clk 0:00:09]} 34... exd3 {[%clk
0:00:16.9]} 35. Bc3 {[%clk 0:00:09.9]} 35... e4 {[%clk 0:00:17]} 36. Bxf6 {[%clk
0:00:11.3]} 36... gxf6 {[%clk 0:00:18.4]} 37. Ra1 {[%clk 0:00:10.7]} 37... Ra6
{[%clk 0:00:17.3]} 38. Kf1 {[%clk 0:00:11.4]} 38... Kf7 {[%clk 0:00:18.6]} 39.
Ke1 {[%clk 0:00:11]} 39... Ke6 {[%clk 0:00:20.3]} 40. Kd2 {[%clk 0:00:12.3]}
40... Kd5 {[%clk 0:00:21.5]} 41. Ke3 {[%clk 0:00:13.8]} 41... Kc4 {[%clk
0:00:22.2]} 42. g4 {[%clk 0:00:14.1]} 42... fxg4 {[%clk 0:00:22.2]} 43. Kxe4
{[%clk 0:00:14.9]} 43... Kc3 {[%clk 0:00:20.9]} 44. Ra3+ {[%clk 0:00:14.2]}
44... Kd2 {[%clk 0:00:20.7]} 45. Rxd3+ {[%clk 0:00:14.3]} 45... Ke2 {[%clk
0:00:22.4]} 46. Rg3 {[%clk 0:00:09.2]} 46... Rxa5 {[%clk 0:00:22.4]} 47. Rxg4
{[%clk 0:00:08]} 47... f5+ {[%clk 0:00:23.7]} 48. Kf4 {[%clk 0:00:07.2]} 48...
fxg4 {[%clk 0:00:24.9]} 49. Kxg4 {[%clk 0:00:09.1]} 49... Kxf2 {[%clk
0:00:25.2]} 50. Kxh3 {[%clk 0:00:10.5]} 50... Kf3 {[%clk 0:00:23.6]} 51. Kh4
{[%clk 0:00:11.3]} 51... Kf4 {[%clk 0:00:21.5]} 52. h3 {[%clk 0:00:12.4]} 52...
Kf5 {[%clk 0:00:20.2]} 53. Kh5 {[%clk 0:00:12.5]} 53... Kf6+ {[%clk 0:00:21.7]}
54. Kg4 {[%clk 0:00:09.7]} 54... Kg6 {[%clk 0:00:22.7]} 55. h4 {[%clk
0:00:10.8]} 55... Ra4+ {[%clk 0:00:24]} 56. Kg3 {[%clk 0:00:10.7]} 56... Kh5
{[%clk 0:00:25.9]} 0-1

[Event "*** Titled Tuesday Blitz"]
[Site "Chess.com"]
[Date "2019.04.02"]
[Round "3"]
[White "Alex_Terzi"]
[Black "Andrjywa"]
[Result "0-1"]
[WhiteElo "2427"]
[BlackElo "2532"]
[TimeControl "180+2"]
[EndTime "14:37:34 PDT"]
[Termination "Andrjywa won by resignation"]

1. e4 {[%clk 0:03:01.9]} 1... c5 {[%clk 0:03:00.7]} 2. Nf3 {[%clk 0:03:02.6]}
2... e6 {[%clk 0:03:02]} 3. d4 {[%clk 0:03:03.7]} 3... cxd4 {[%clk 0:03:03.9]}
4. Nxd4 {[%clk 0:03:05.3]} 4... a6 {[%clk 0:03:05.1]} 5. c4 {[%clk 0:03:05.8]}
5... Nf6 {[%clk 0:03:04.9]} 6. Nc3 {[%clk 0:03:06.7]} 6... Bb4 {[%clk
0:03:06.5]} 7. Qd3 {[%clk 0:03:04.1]} 7... d5 {[%clk 0:03:04.4]} 8. cxd5 {[%clk
0:02:58.3]} 8... exd5 {[%clk 0:03:06.3]} 9. e5 {[%clk 0:02:54.4]} 9... Qe7
{[%clk 0:02:45.6]} 10. Bf4 {[%clk 0:02:36.4]} 10... Nh5 {[%clk 0:02:43.5]} 11.
Bg3 {[%clk 0:02:36.1]} 11... Nxg3 {[%clk 0:02:40.3]} 12. Qxg3 {[%clk 0:02:36.9]}
12... O-O {[%clk 0:02:33.9]} 13. Be2 {[%clk 0:02:30.6]} 13... Bxc3+ {[%clk
0:02:25.4]} 14. bxc3 {[%clk 0:02:29.9]} 14... Re8 {[%clk 0:02:23]} 15. Nf3
{[%clk 0:02:11.5]} 15... Nc6 {[%clk 0:02:16.2]} 16. O-O {[%clk 0:01:57.7]} 16...
Nxe5 {[%clk 0:02:13.6]} 17. Rad1 {[%clk 0:01:49.8]} 17... Ng6 {[%clk 0:01:51.8]}
18. Rfe1 {[%clk 0:01:41.3]} 18... Be6 {[%clk 0:01:51.4]} 19. c4 {[%clk
0:01:16.6]} 19... dxc4 {[%clk 0:01:47.6]} 20. Bxc4 {[%clk 0:01:17.3]} 20... Qf6
{[%clk 0:01:26.6]} 21. Bxe6 {[%clk 0:01:10.4]} 21... Rxe6 {[%clk 0:01:26.7]} 22.
Qc7 {[%clk 0:01:01.7]} 22... Rxe1+ {[%clk 0:01:01.6]} 23. Rxe1 {[%clk
0:00:59.6]} 23... b5 {[%clk 0:00:52.3]} 24. Rd1 {[%clk 0:00:51.4]} 24... h6
{[%clk 0:00:48.6]} 25. h3 {[%clk 0:00:50.3]} 25... Re8 {[%clk 0:00:43.3]} 26. a3
{[%clk 0:00:42.6]} 26... Nf4 {[%clk 0:00:43.8]} 27. Qd7 {[%clk 0:00:34.9]} 27...
Re7 {[%clk 0:00:31]} 28. Qc8+ {[%clk 0:00:33.9]} 28... Kh7 {[%clk 0:00:32.5]}
29. Rd8 {[%clk 0:00:30.2]} 29... Qe6 {[%clk 0:00:10.1]} 30. Rh8+ {[%clk
0:00:30.6]} 30... Kg6 {[%clk 0:00:11.5]} 31. Qc2+ {[%clk 0:00:26]} 31... Qe4
{[%clk 0:00:12.1]} 32. Nh4+ {[%clk 0:00:21.6]} 32... Kh5 {[%clk 0:00:08.2]} 33.
Qxe4 {[%clk 0:00:18.8]} 33... Rxe4 {[%clk 0:00:10.1]} 34. Nf5 {[%clk 0:00:20.4]}
34... Kg6 {[%clk 0:00:08]} 35. Nh4+ {[%clk 0:00:13.1]} 35... Kg5 {[%clk
0:00:07.1]} 36. Nf3+ {[%clk 0:00:12.6]} 36... Kf6 {[%clk 0:00:08.6]} 37. Ra8
{[%clk 0:00:12.9]} 37... Ra4 {[%clk 0:00:10.2]} 38. Nd2 {[%clk 0:00:13.5]} 38...
Rxa3 {[%clk 0:00:10.9]} 39. Ne4+ {[%clk 0:00:15.1]} 39... Ke5 {[%clk 0:00:11.5]}
40. Nc5 {[%clk 0:00:15.6]} 40... a5 {[%clk 0:00:11.5]} 41. Nd7+ {[%clk
0:00:16.8]} 41... Ke6 {[%clk 0:00:10.2]} 42. Ra7 {[%clk 0:00:15.2]} 42... a4
{[%clk 0:00:10.1]} 43. Nc5+ {[%clk 0:00:16.1]} 43... Kd5 {[%clk 0:00:10.9]} 44.
Na6 {[%clk 0:00:15]} 44... Ra1+ {[%clk 0:00:11.1]} 45. Kh2 {[%clk 0:00:15.6]}
45... Kc4 {[%clk 0:00:12.6]} 46. Rxf7 {[%clk 0:00:16.5]} 46... Nd5 {[%clk
0:00:12.2]} 47. Rxg7 {[%clk 0:00:17]} 47... a3 {[%clk 0:00:13.6]} 48. Rg8 {[%clk
0:00:15]} 48... a2 {[%clk 0:00:14.4]} 49. Rc8+ {[%clk 0:00:16.5]} 49... Kb3
{[%clk 0:00:13.3]} 50. Nc5+ {[%clk 0:00:16.4]} 50... Ka3 {[%clk 0:00:13.5]} 51.
Ra8+ {[%clk 0:00:16.4]} 51... Kb2 {[%clk 0:00:14.5]} 52. Nd3+ {[%clk 0:00:17.4]}
52... Kc3 {[%clk 0:00:15]} 53. Nc5 {[%clk 0:00:16.7]} 53... b4 {[%clk
0:00:15.7]} 54. f4 {[%clk 0:00:16.6]} 54... b3 {[%clk 0:00:16.5]} 55. f5 {[%clk
0:00:15.4]} 55... b2 {[%clk 0:00:16.9]} 56. Na4+ {[%clk 0:00:16.2]} 56... Kb3
{[%clk 0:00:17.1]} 57. Nxb2 {[%clk 0:00:15.6]} 57... Kxb2 {[%clk 0:00:18.3]} 58.
Ra5 {[%clk 0:00:15]} 58... Rd1 {[%clk 0:00:18.2]} 59. Rb5+ {[%clk 0:00:16.6]}
59... Ka3 {[%clk 0:00:18.5]} 0-1

[Event "*** Titled Tuesday Blitz"]
[Site "Chess.com"]
[Date "2019.04.02"]
[Round "3"]
[White "pedroholly22"]
[Black "cukus"]
[Result "0-1"]
[WhiteElo "2257"]
[BlackElo "2400"]
[TimeControl "180+2"]
[EndTime "14:37:49 PDT"]
[Termination "cukus won by resignation"]

1. e4 {[%clk 0:03:01.9]} 1... e5 {[%clk 0:02:59.3]} 2. Nf3 {[%clk 0:03:00.2]}
2... Nf6 {[%clk 0:02:59.3]} 3. Nxe5 {[%clk 0:02:59.2]} 3... d6 {[%clk
0:02:58.9]} 4. Nc4 {[%clk 0:02:58]} 4... Nxe4 {[%clk 0:02:59.1]} 5. Qe2 {[%clk
0:02:58.3]} 5... Qe7 {[%clk 0:02:59.7]} 6. Ne3 {[%clk 0:02:58.9]} 6... c6 {[%clk
0:02:56.7]} 7. g3 {[%clk 0:02:54.4]} 7... g6 {[%clk 0:02:49.1]} 8. Bg2 {[%clk
0:02:54.6]} 8... Nf6 {[%clk 0:02:50.1]} 9. O-O {[%clk 0:02:51.8]} 9... Bg7
{[%clk 0:02:51.1]} 10. d4 {[%clk 0:02:48.2]} 10... d5 {[%clk 0:02:48.3]} 11. Re1
{[%clk 0:02:44.9]} 11... Be6 {[%clk 0:02:26.1]} 12. c4 {[%clk 0:02:34.6]} 12...
dxc4 {[%clk 0:02:07.9]} 13. d5 {[%clk 0:02:24.4]} 13... cxd5 {[%clk 0:01:49.6]}
14. Nxd5 {[%clk 0:02:24.8]} 14... Nxd5 {[%clk 0:01:48.4]} 15. Bxd5 {[%clk
0:02:25]} 15... O-O {[%clk 0:01:48.9]} 16. Bxe6 {[%clk 0:02:23]} 16... Qxe6
{[%clk 0:01:47.5]} 17. Qxe6 {[%clk 0:02:23.3]} 17... fxe6 {[%clk 0:01:49.4]} 18.
Rxe6 {[%clk 0:02:24.3]} 18... Nc6 {[%clk 0:01:38.7]} 19. Nc3 {[%clk 0:02:24.7]}
19... Nd4 {[%clk 0:01:27.9]} 20. Re4 {[%clk 0:02:04.4]} 20... Rae8 {[%clk
0:01:14.5]} 21. Be3 {[%clk 0:01:43.7]} 21... Rxe4 {[%clk 0:01:04.5]} 22. Nxe4
{[%clk 0:01:44.2]} 22... Nc2 {[%clk 0:01:05.8]} 23. Rc1 {[%clk 0:01:44]} 23...
Nxe3 {[%clk 0:01:05.2]} 24. fxe3 {[%clk 0:01:45.9]} 24... b5 {[%clk 0:01:02.9]}
25. b3 {[%clk 0:01:46.9]} 25... cxb3 {[%clk 0:00:36.1]} 26. axb3 {[%clk
0:01:48.8]} 26... Re8 {[%clk 0:00:37.4]} 27. Nd6 {[%clk 0:01:48.9]} 27... Rxe3
{[%clk 0:00:33.2]} 28. Rc8+ {[%clk 0:01:39.8]} 28... Bf8 {[%clk 0:00:33.2]} 29.
Nxb5 {[%clk 0:01:39.9]} 29... a6 {[%clk 0:00:29.8]} 30. Nc7 {[%clk 0:01:34.7]}
30... Rc3 {[%clk 0:00:26.2]} 31. Kg2 {[%clk 0:00:57.6]} 31... Kf7 {[%clk
0:00:25.5]} 32. Rxf8+ {[%clk 0:00:57.9]} 32... Kxf8 {[%clk 0:00:25.9]} 33. Nxa6
{[%clk 0:00:59.8]} 33... Rxb3 {[%clk 0:00:27.1]} 34. Nc5 {[%clk 0:01:00.7]}
34... Rb4 {[%clk 0:00:26.5]} 35. Ne6+ {[%clk 0:01:00.4]} 35... Kf7 {[%clk
0:00:25]} 36. Ng5+ {[%clk 0:01:01.9]} 36... Kg7 {[%clk 0:00:26.4]} 37. Ne6+
{[%clk 0:01:03.3]} 37... Kf6 {[%clk 0:00:27.9]} 38. Nf4 {[%clk 0:01:04.6]} 38...
Rb3 {[%clk 0:00:21.5]} 39. h4 {[%clk 0:01:03.4]} 39... h6 {[%clk 0:00:22.4]} 40.
Nd5+ {[%clk 0:01:02.8]} 40... Ke5 {[%clk 0:00:20.8]} 41. Nf4 {[%clk 0:00:58.9]}
41... g5 {[%clk 0:00:21.7]} 42. hxg5 {[%clk 0:00:59.7]} 42... hxg5 {[%clk
0:00:23.6]} 43. Nh3 {[%clk 0:00:59.4]} 43... g4 {[%clk 0:00:22.8]} 44. Nf2
{[%clk 0:00:59.6]} 44... Rb2 {[%clk 0:00:23]} 45. Kf1 {[%clk 0:01:00.1]} 45...
Rxf2+ {[%clk 0:00:15.1]} 46. Kxf2 {[%clk 0:01:01.2]} 46... Kd4 {[%clk
0:00:16.6]} 47. Kf1 {[%clk 0:00:53.9]} 47... Ke3 {[%clk 0:00:16.9]} 48. Ke1
{[%clk 0:00:49.8]} 48... Kf3 {[%clk 0:00:17.7]} 49. Kf1 {[%clk 0:00:50.6]} 49...
Kxg3 {[%clk 0:00:19.2]} 50. Kg1 {[%clk 0:00:51.7]} 50... Kh3 {[%clk 0:00:20.2]}
51. Kh1 {[%clk 0:00:52.6]} 51... g3 {[%clk 0:00:21]} 52. Kg1 {[%clk 0:00:53.8]}
52... g2 {[%clk 0:00:22.4]} 53. Kf2 {[%clk 0:00:55.2]} 53... Kh2 {[%clk
0:00:23.9]} 54. Kf3 {[%clk 0:00:57.1]} 54... g1=Q {[%clk 0:00:24.8]} 55. Kf4
{[%clk 0:00:59]} 55... Qg6 {[%clk 0:00:23.4]} 56. Ke5 {[%clk 0:00:59.8]} 56...
Qf7 {[%clk 0:00:23.6]} 57. Ke4 {[%clk 0:01:00.7]} 57... Qf6 {[%clk 0:00:24.5]}
58. Kd5 {[%clk 0:01:01.8]} 58... Qe7 {[%clk 0:00:22.9]} 59. Kd4 {[%clk
0:01:02.2]} 59... Qe6 {[%clk 0:00:23.5]} 60. Kc5 {[%clk 0:01:03.1]} 60... Kg3
{[%clk 0:00:23.8]} 61. Kd4 {[%clk 0:00:45.2]} 61... Kf4 {[%clk 0:00:22.6]} 62.
Kc5 {[%clk 0:00:47.1]} 62... Ke5 {[%clk 0:00:22.9]} 63. Kb4 {[%clk 0:00:46.2]}
63... Kd4 {[%clk 0:00:19.1]} 64. Kb5 {[%clk 0:00:46.1]} 64... Qd6 {[%clk
0:00:19.5]} 65. Ka4 {[%clk 0:00:46.8]} 65... Qb8 {[%clk 0:00:20.2]} 66. Ka5
{[%clk 0:00:47.7]} 66... Kc5 {[%clk 0:00:21]} 0-1

[Event "*** Titled Tuesday Blitz"]
[Site "Chess.com"]
[Date "2019.04.02"]
[Round "3"]
[White "JonahWillow"]
[Black "penguingm1"]
[Result "0-1"]
[WhiteElo "2688"]
[BlackElo "2963"]
[TimeControl "180+2"]
[EndTime "14:37:51 PDT"]
[Termination "penguingm1 won on time"]

1. e4 {[%clk 0:03:01.9]} 1... e5 {[%clk 0:03:00.8]} 2. Nf3 {[%clk 0:03:01.7]}
2... Nc6 {[%clk 0:03:02.4]} 3. Nc3 {[%clk 0:03:03.3]} 3... Nf6 {[%clk
0:03:03.6]} 4. Bb5 {[%clk 0:03:04.1]} 4... Bb4 {[%clk 0:03:04.7]} 5. O-O {[%clk
0:03:05.1]} 5... O-O {[%clk 0:03:06]} 6. d3 {[%clk 0:03:06.8]} 6... d6 {[%clk
0:03:06.9]} 7. Bg5 {[%clk 0:03:07.5]} 7... Bxc3 {[%clk 0:03:08.2]} 8. bxc3
{[%clk 0:03:09.4]} 8... Qe7 {[%clk 0:03:09.8]} 9. Re1 {[%clk 0:03:09.6]} 9...
Nd8 {[%clk 0:03:11]} 10. d4 {[%clk 0:03:09.1]} 10... Ne6 {[%clk 0:03:12.3]} 11.
Bc1 {[%clk 0:03:09.7]} 11... c5 {[%clk 0:03:13.8]} 12. Bf1 {[%clk 0:03:05.2]}
12... Rd8 {[%clk 0:03:12.9]} 13. d5 {[%clk 0:02:55.4]} 13... Nf8 {[%clk
0:03:13]} 14. g3 {[%clk 0:02:56.5]} 14... Bd7 {[%clk 0:03:13.3]} 15. a4 {[%clk
0:02:52.3]} 15... Rdb8 {[%clk 0:03:12.3]} 16. Nd2 {[%clk 0:02:42.1]} 16... b6
{[%clk 0:03:00.2]} 17. Nc4 {[%clk 0:02:32.5]} 17... h6 {[%clk 0:03:00.3]} 18.
Bd2 {[%clk 0:02:17.8]} 18... N8h7 {[%clk 0:02:50]} 19. Bg2 {[%clk 0:02:05.4]}
19... Ng5 {[%clk 0:02:42]} 20. f4 {[%clk 0:01:48.5]} 20... Bg4 {[%clk
0:01:57.3]} 21. fxg5 {[%clk 0:01:24.5]} 21... Bxd1 {[%clk 0:01:55.9]} 22. gxf6
{[%clk 0:01:25.8]} 22... Qxf6 {[%clk 0:01:57.2]} 23. Raxd1 {[%clk 0:01:27.3]}
23... a6 {[%clk 0:01:50.5]} 24. Rf1 {[%clk 0:01:28.1]} 24... Qe7 {[%clk
0:01:51.2]} 25. Ne3 {[%clk 0:01:27.4]} 25... b5 {[%clk 0:01:49.1]} 26. Nf5
{[%clk 0:01:27]} 26... Qd8 {[%clk 0:01:49.3]} 27. Rf2 {[%clk 0:00:59.5]} 27...
Ra7 {[%clk 0:01:42.6]} 28. axb5 {[%clk 0:00:49.4]} 28... axb5 {[%clk 0:01:43.6]}
29. Rdf1 {[%clk 0:00:49]} 29... Rba8 {[%clk 0:01:33.2]} 30. Bh3 {[%clk
0:00:42.5]} 30... Ra1 {[%clk 0:01:32.6]} 31. Bc1 {[%clk 0:00:20.5]} 31... R8a7
{[%clk 0:01:33.3]} 32. Kg2 {[%clk 0:00:21.2]} 32... Qf8 {[%clk 0:01:02.5]} 33.
g4 {[%clk 0:00:18.1]} 33... Rb1 {[%clk 0:00:58.6]} 34. g5 {[%clk 0:00:11.2]}
34... hxg5 {[%clk 0:00:57.6]} 35. Bxg5 {[%clk 0:00:03.6]} 35... Rxf1 {[%clk
0:00:59.5]} 36. Rxf1 {[%clk 0:00:05.1]} 36... f6 {[%clk 0:01:01.1]} 37. Be3
{[%clk 0:00:06.1]} 37... Ra2 {[%clk 0:00:54.3]} 38. Rf2 {[%clk 0:00:07.2]} 38...
Qd8 {[%clk 0:00:54.3]} 39. Nh4 {[%clk 0:00:08.3]} 39... Qa5 {[%clk 0:00:48.8]}
40. Be6+ {[%clk 0:00:09.9]} 40... Kf8 {[%clk 0:00:50.1]} 41. Ng6+ {[%clk
0:00:05.9]} 41... Ke8 {[%clk 0:00:51.3]} 42. Nh4 {[%clk 0:00:03]} 42... Qxc3
{[%clk 0:00:49.2]} 43. Nf5 {[%clk 0:00:04.9]} 43... Rxc2 {[%clk 0:00:49.9]} 44.
Nxd6+ {[%clk 0:00:05.8]} 44... Kd8 {[%clk 0:00:51.2]} 45. Nxb5 {[%clk
0:00:05.1]} 45... Rxf2+ {[%clk 0:00:45.5]} 46. Bxf2 {[%clk 0:00:07]} 46... Qc2
{[%clk 0:00:42.8]} 47. Nd6 {[%clk 0:00:07.8]} 47... c4 {[%clk 0:00:43.1]} 48.
Kf3 {[%clk 0:00:08.8]} 48... Kc7 {[%clk 0:00:40.9]} 49. Nf5 {[%clk 0:00:05.7]}
49... Qd3+ {[%clk 0:00:40.2]} 50. Be3 {[%clk 0:00:06.7]} 50... c3 {[%clk
0:00:41.4]} 51. d6+ {[%clk 0:00:08]} 51... Kd8 {[%clk 0:00:35.3]} 52. Kf2 {[%clk
0:00:05.5]} 52... Qa6 {[%clk 0:00:25.1]} 53. Bd5 {[%clk 0:00:03]} 53... c2
{[%clk 0:00:24.4]} 54. Nxg7 {[%clk 0:00:03.2]} 54... Qxd6 {[%clk 0:00:25.3]} 55.
Ne6+ {[%clk 0:00:05.1]} 55... Ke7 {[%clk 0:00:24.1]} 56. Nc5 {[%clk 0:00:06.6]}
56... c1=Q {[%clk 0:00:21.4]} 57. Bxc1 {[%clk 0:00:07.9]} 57... Qxc5+ {[%clk
0:00:22.9]} 58. Be3 {[%clk 0:00:09.8]} 58... Qc2+ {[%clk 0:00:24.4]} 59. Kg3
{[%clk 0:00:11]} 59... Qd3 {[%clk 0:00:22.3]} 60. Kf2 {[%clk 0:00:12]} 60... f5
{[%clk 0:00:21.6]} 61. Bc5+ {[%clk 0:00:08.8]} 61... Kf6 {[%clk 0:00:21.8]} 62.
Be3 {[%clk 0:00:03.8]} 62... f4 {[%clk 0:00:22.6]} 0-1